[Event "Early-Titled-Tuesday-Blitz-March-05-2024"]
[Site "Chess.com"]
[Date "2024.03.05"]
[Round "4"]
[White "IlanSchnaider"]
[Black "Chessbard1972"]
[Result "1-0"]
[WhiteElo "2661"]
[BlackElo "2453"]
[TimeControl "180+1"]
[EndTime "8:42:26 PST"]
[Termination "IlanSchnaider won by checkmate"]

1. e4 {[%clk 0:03:00.9]} 1... e5 {[%clk 0:02:58.4]} 2. Nf3 {[%clk 0:03:00.5]}
2... Nc6 {[%clk 0:02:58.4]} 3. d4 {[%clk 0:02:57.4]} 3... exd4 {[%clk
0:02:57.9]} 4. Nxd4 {[%clk 0:02:58.3]} 4... Bc5 {[%clk 0:02:57.8]} 5. Nb3 {[%clk
0:02:58.2]} 5... Bb6 {[%clk 0:02:57.7]} 6. Nc3 {[%clk 0:02:58.9]} 6... d6 {[%clk
0:02:56.1]} 7. Bf4 {[%clk 0:02:58.8]} 7... Nge7 {[%clk 0:02:55.3]} 8. Qd2 {[%clk
0:02:59.2]} 8... Ng6 {[%clk 0:02:54.5]} 9. Bg3 {[%clk 0:02:58.7]} 9... O-O
{[%clk 0:02:53.6]} 10. O-O-O {[%clk 0:02:58.5]} 10... a5 {[%clk 0:02:52.4]} 11.
Bb5 {[%clk 0:02:55.3]} 11... Bd7 {[%clk 0:02:50.2]} 12. a4 {[%clk 0:02:49.8]}
12... Nce5 {[%clk 0:02:37.2]} 13. h4 {[%clk 0:02:35.2]} 13... Bxb5 {[%clk
0:02:35.7]} 14. Nxb5 {[%clk 0:02:33.4]} 14... h5 {[%clk 0:02:26.8]} 15. Qe2
{[%clk 0:02:19.4]} 15... Ng4 {[%clk 0:02:24.1]} 16. f3 {[%clk 0:02:11.9]} 16...
Nf6 {[%clk 0:02:18]} 17. e5 {[%clk 0:01:40.3]} 17... Qe7 {[%clk 0:02:08.3]} 18.
f4 {[%clk 0:01:29.3]} 18... Ng4 {[%clk 0:02:04.3]} 19. Qe4 {[%clk 0:01:08.8]}
19... dxe5 {[%clk 0:01:59]} 20. f5 {[%clk 0:01:08.9]} 20... Be3+ {[%clk
0:01:38.8]} 21. Kb1 {[%clk 0:01:07.9]} 21... Nf4 {[%clk 0:01:38.7]} 22. Rhe1
{[%clk 0:00:57.1]} 22... Bf2 {[%clk 0:01:25]} 23. Bxf4 {[%clk 0:00:36.7]} 23...
Bxe1 {[%clk 0:01:18.7]} 24. Rxe1 {[%clk 0:00:37.6]} 24... Qxh4 {[%clk
0:01:13.3]} 25. Bd2 {[%clk 0:00:27.6]} 25... c6 {[%clk 0:01:08]} 26. Nd6 {[%clk
0:00:16.9]} 26... Qg3 {[%clk 0:00:59.7]} 27. Nxb7 {[%clk 0:00:12.8]} 27... Rab8
{[%clk 0:00:53]} 28. N7c5 {[%clk 0:00:13.1]} 28... Rfd8 {[%clk 0:00:46.1]} 29.
Bxa5 {[%clk 0:00:13.1]} 29... Nf6 {[%clk 0:00:37.3]} 30. Qxe5 {[%clk 0:00:08.4]}
30... Rd1+ {[%clk 0:00:33.9]} 31. Ka2 {[%clk 0:00:07.8]} 31... Qxe1 {[%clk
0:00:28.6]} 32. Bxe1 {[%clk 0:00:07]} 32... Rbd8 {[%clk 0:00:22.4]} 33. Bc3
{[%clk 0:00:05.9]} 33... R1d5 {[%clk 0:00:18.2]} 34. Qg3 {[%clk 0:00:05.6]}
34... Rxf5 {[%clk 0:00:17.2]} 35. Ne4 {[%clk 0:00:05.3]} 35... Ng4 {[%clk
0:00:16.6]} 36. a5 {[%clk 0:00:03.6]} 36... Re8 {[%clk 0:00:14.7]} 37. Nd6
{[%clk 0:00:03.7]} 37... Re3 {[%clk 0:00:13.5]} 38. Nxf5 {[%clk 0:00:04.2]}
38... Rxg3 {[%clk 0:00:13.3]} 39. Nxg3 {[%clk 0:00:05.1]} 39... Ne5 {[%clk
0:00:13.5]} 40. Bxe5 {[%clk 0:00:04.7]} 40... f6 {[%clk 0:00:13.2]} 41. a6
{[%clk 0:00:05.6]} 41... h4 {[%clk 0:00:13.6]} 42. a7 {[%clk 0:00:06.5]} 42...
Kh7 {[%clk 0:00:12.7]} 43. a8=Q {[%clk 0:00:07.4]} 43... hxg3 {[%clk 0:00:10.7]}
44. Qxc6 {[%clk 0:00:07.6]} 44... fxe5 {[%clk 0:00:10.6]} 45. Qe4+ {[%clk
0:00:07.6]} 45... Kg8 {[%clk 0:00:10.4]} 46. Qxe5 {[%clk 0:00:07.9]} 46... Kf7
{[%clk 0:00:10.7]} 47. Nd4 {[%clk 0:00:07.7]} 47... Kg6 {[%clk 0:00:11.6]} 48.
Qf5+ {[%clk 0:00:08]} 48... Kh6 {[%clk 0:00:12.5]} 49. Ne6 {[%clk 0:00:08.1]}
49... g6 {[%clk 0:00:13.4]} 50. Qg5+ {[%clk 0:00:08.1]} 50... Kh7 {[%clk
0:00:12.3]} 51. Qe7+ {[%clk 0:00:08.9]} 51... Kh6 {[%clk 0:00:12.4]} 52. Qh4#
{[%clk 0:00:09.2]} 1-0

[Event "Early-Titled-Tuesday-Blitz-March-05-2024"]
[Site "Chess.com"]
[Date "2024.03.05"]
[Round "4"]
[White "Sajith_Peiris"]
[Black "Ajedrez_con_German"]
[Result "0-1"]
[WhiteElo "2234"]
[BlackElo "2576"]
[TimeControl "180+1"]
[EndTime "8:42:28 PST"]
[Termination "Ajedrez_con_German won by checkmate"]

1. e4 {[%clk 0:03:00.9]} 1... e6 {[%clk 0:03:00.9]} 2. d4 {[%clk 0:02:59.2]}
2... d5 {[%clk 0:03:01.8]} 3. Nd2 {[%clk 0:02:59.3]} 3... dxe4 {[%clk
0:03:02.4]} 4. Nxe4 {[%clk 0:02:59]} 4... Bd7 {[%clk 0:03:03.3]} 5. Nf3 {[%clk
0:02:57.4]} 5... Bc6 {[%clk 0:03:03.6]} 6. Ng3 {[%clk 0:02:54.9]} 6... Nd7
{[%clk 0:03:03.9]} 7. Bd3 {[%clk 0:02:52.5]} 7... Ngf6 {[%clk 0:03:04.3]} 8. Bd2
{[%clk 0:02:50.6]} 8... g6 {[%clk 0:03:04.6]} 9. c3 {[%clk 0:02:49.9]} 9... Bg7
{[%clk 0:03:05]} 10. Qc2 {[%clk 0:02:49.4]} 10... Bxf3 {[%clk 0:03:00.7]} 11.
gxf3 {[%clk 0:02:48]} 11... c6 {[%clk 0:03:01.6]} 12. O-O-O {[%clk 0:02:43.9]}
12... Nd5 {[%clk 0:02:55.1]} 13. Ne4 {[%clk 0:02:41.6]} 13... N7f6 {[%clk
0:02:53.3]} 14. c4 {[%clk 0:02:35.9]} 14... Ne7 {[%clk 0:02:47.2]} 15. Bc3
{[%clk 0:02:32.3]} 15... Nf5 {[%clk 0:02:47.1]} 16. Nxf6+ {[%clk 0:02:27.3]}
16... Bxf6 {[%clk 0:02:35.5]} 17. Bxf5 {[%clk 0:02:22.1]} 17... exf5 {[%clk
0:02:35.4]} 18. Rhe1+ {[%clk 0:02:20.2]} 18... Kf8 {[%clk 0:02:35.8]} 19. Kb1
{[%clk 0:02:14.6]} 19... Kg7 {[%clk 0:02:31.9]} 20. Rg1 {[%clk 0:02:00.9]} 20...
Qd7 {[%clk 0:01:58.8]} 21. d5 {[%clk 0:01:58.6]} 21... Qd6 {[%clk 0:01:47.4]}
22. c5 {[%clk 0:01:58]} 22... Qe7 {[%clk 0:01:42.7]} 23. d6 {[%clk 0:01:55.3]}
23... Qd8 {[%clk 0:01:42.5]} 24. h4 {[%clk 0:01:50.4]} 24... b6 {[%clk
0:01:38.8]} 25. h5 {[%clk 0:01:39.6]} 25... Re8 {[%clk 0:01:31.6]} 26. d7 {[%clk
0:01:35]} 26... Re6 {[%clk 0:01:31]} 27. hxg6 {[%clk 0:01:21.5]} 27... hxg6
{[%clk 0:01:30.6]} 28. Qxf5 {[%clk 0:01:15]} 28... Bxc3 {[%clk 0:01:23.5]} 29.
bxc3 {[%clk 0:01:13.2]} 29... bxc5 {[%clk 0:01:23.5]} 30. Qxc5 {[%clk
0:01:12.9]} 30... Qf6 {[%clk 0:01:14.9]} 31. Rd3 {[%clk 0:00:58.7]} 31... Rd8
{[%clk 0:01:14.2]} 32. Rgd1 {[%clk 0:00:57.5]} 32... Re5 {[%clk 0:01:14.3]} 33.
Qxa7 {[%clk 0:00:52.5]} 33... Rb5+ {[%clk 0:01:09.8]} 34. Ka1 {[%clk 0:00:51.1]}
34... Rd5 {[%clk 0:01:03.7]} 35. Qc7 {[%clk 0:00:41.4]} 35... R8xd7 {[%clk
0:00:59.7]} 36. Qxd7 {[%clk 0:00:35.7]} 36... Rxd7 {[%clk 0:00:59.7]} 37. Rxd7
{[%clk 0:00:36.5]} 37... Qxc3+ {[%clk 0:01:00]} 38. Kb1 {[%clk 0:00:36.4]} 38...
Qb4+ {[%clk 0:00:56.7]} 39. Ka1 {[%clk 0:00:35.8]} 39... Qc3+ {[%clk 0:00:56.6]}
40. Kb1 {[%clk 0:00:36.1]} 40... Qxf3 {[%clk 0:00:57.3]} 41. R1d2 {[%clk
0:00:35.4]} 41... c5 {[%clk 0:00:54.7]} 42. Kb2 {[%clk 0:00:34]} 42... c4 {[%clk
0:00:53.8]} 43. Kc2 {[%clk 0:00:31.4]} 43... Qa3 {[%clk 0:00:52.1]} 44. Kd1
{[%clk 0:00:12.6]} 44... c3 {[%clk 0:00:52]} 45. Rc2 {[%clk 0:00:11.9]} 45...
Qa4 {[%clk 0:00:37.9]} 46. Rd3 {[%clk 0:00:10.5]} 46... Qg4+ {[%clk 0:00:37.8]}
47. Ke1 {[%clk 0:00:07.7]} 47... Qg1+ {[%clk 0:00:37.9]} 48. Ke2 {[%clk
0:00:07.6]} 48... Qg4+ {[%clk 0:00:34.9]} 49. f3 {[%clk 0:00:05.6]} 49... Qg2+
{[%clk 0:00:31.5]} 50. Kd1 {[%clk 0:00:05.4]} 50... Qf1# {[%clk 0:00:31.8]} 0-1

[Event "Early-Titled-Tuesday-Blitz-March-05-2024"]
[Site "Chess.com"]
[Date "2024.03.05"]
[Round "4"]
[White "Chernov_Mikhail"]
[Black "ProChessWICTH"]
[Result "0-1"]
[WhiteElo "2355"]
[BlackElo "2625"]
[TimeControl "180+1"]
[EndTime "8:42:29 PST"]
[Termination "ProChessWICTH won by resignation"]

1. e4 {[%clk 0:03:00.9]} 1... c5 {[%clk 0:02:58.6]} 2. c3 {[%clk 0:03:00.7]}
2... e6 {[%clk 0:02:55.1]} 3. d4 {[%clk 0:03:00]} 3... cxd4 {[%clk 0:02:52.9]}
4. cxd4 {[%clk 0:03:00.9]} 4... d5 {[%clk 0:02:53]} 5. e5 {[%clk 0:03:01.4]}
5... Ne7 {[%clk 0:02:52.9]} 6. Nf3 {[%clk 0:02:58.4]} 6... Nbc6 {[%clk 0:02:52]}
7. a3 {[%clk 0:02:58]} 7... Nf5 {[%clk 0:02:49.3]} 8. b4 {[%clk 0:02:56.7]} 8...
Be7 {[%clk 0:02:33.7]} 9. Bb2 {[%clk 0:02:45.5]} 9... O-O {[%clk 0:02:33.2]} 10.
Bd3 {[%clk 0:02:45.6]} 10... f6 {[%clk 0:02:33.3]} 11. O-O {[%clk 0:02:44.1]}
11... fxe5 {[%clk 0:02:32.6]} 12. Nxe5 {[%clk 0:02:43.3]} 12... Nxe5 {[%clk
0:02:25.5]} 13. dxe5 {[%clk 0:02:44.2]} 13... Bd7 {[%clk 0:02:24.3]} 14. Nc3
{[%clk 0:02:36.3]} 14... Rc8 {[%clk 0:02:22.7]} 15. Rc1 {[%clk 0:02:32.5]} 15...
Qb6 {[%clk 0:02:07.2]} 16. Ne2 {[%clk 0:02:24]} 16... Rxc1 {[%clk 0:01:38.1]}
17. Qxc1 {[%clk 0:02:20.8]} 17... a5 {[%clk 0:01:23.2]} 18. bxa5 {[%clk
0:01:55.9]} 18... Qxa5 {[%clk 0:01:18.5]} 19. Qc3 {[%clk 0:01:19.5]} 19... Qxc3
{[%clk 0:01:11.3]} 20. Nxc3 {[%clk 0:01:20.4]} 20... Bc5 {[%clk 0:01:04]} 21.
Bb5 {[%clk 0:00:51.9]} 21... Bxb5 {[%clk 0:00:57.7]} 22. Nxb5 {[%clk 0:00:52.8]}
22... Ne3 {[%clk 0:00:54.6]} 23. Rc1 {[%clk 0:00:44.1]} 23... Nc4 {[%clk
0:00:54.5]} 24. Bd4 {[%clk 0:00:44.3]} 24... Bxd4 {[%clk 0:00:33.2]} 25. Nxd4
{[%clk 0:00:45.2]} 25... Kf7 {[%clk 0:00:32.2]} 26. Rb1 {[%clk 0:00:43.6]} 26...
b6 {[%clk 0:00:31.9]} 27. Rb3 {[%clk 0:00:38.7]} 27... Ra8 {[%clk 0:00:29.9]}
28. Rf3+ {[%clk 0:00:24.5]} 28... Ke7 {[%clk 0:00:29]} 29. Rg3 {[%clk
0:00:25.2]} 29... g6 {[%clk 0:00:22.7]} 30. Nc2 {[%clk 0:00:19.9]} 30... Nxe5
{[%clk 0:00:17.4]} 31. Rh3 {[%clk 0:00:20.3]} 31... Rc8 {[%clk 0:00:12.7]} 32.
Rxh7+ {[%clk 0:00:19.1]} 32... Kd6 {[%clk 0:00:12]} 33. Ne3 {[%clk 0:00:19.8]}
33... Rc1+ {[%clk 0:00:10.6]} 34. Nf1 {[%clk 0:00:20.5]} 34... Nc4 {[%clk
0:00:07.4]} 35. g3 {[%clk 0:00:20.6]} 35... Nd2 {[%clk 0:00:06.9]} 36. Kg2
{[%clk 0:00:20.7]} 36... Nxf1 {[%clk 0:00:07]} 37. Rh6 {[%clk 0:00:21.1]} 37...
Nd2 {[%clk 0:00:05.8]} 38. Rxg6 {[%clk 0:00:21.4]} 38... Ne4 {[%clk 0:00:05]}
39. h4 {[%clk 0:00:21.7]} 39... Rc2 {[%clk 0:00:04.5]} 40. h5 {[%clk 0:00:22.1]}
40... Rxf2+ {[%clk 0:00:04.8]} 41. Kg1 {[%clk 0:00:22.9]} 41... Rf8 {[%clk
0:00:04.7]} 42. h6 {[%clk 0:00:23.4]} 42... Rh8 {[%clk 0:00:02.1]} 43. g4 {[%clk
0:00:24]} 43... Ke5 {[%clk 0:00:02.3]} 44. Kg2 {[%clk 0:00:24.9]} 44... Kf4
{[%clk 0:00:02.8]} 45. Kh3 {[%clk 0:00:24.5]} 45... d4 {[%clk 0:00:03.4]} 46.
Kh4 {[%clk 0:00:24.8]} 46... Ke3 {[%clk 0:00:04.1]} 47. Rxe6 {[%clk 0:00:25.1]}
47... d3 {[%clk 0:00:04.8]} 48. g5 {[%clk 0:00:25.5]} 48... d2 {[%clk
0:00:05.5]} 49. g6 {[%clk 0:00:24.9]} 49... Rxh6+ {[%clk 0:00:05.5]} 50. Kg4
{[%clk 0:00:24.7]} 50... d1=Q+ {[%clk 0:00:06.1]} 0-1

[Event "Early-Titled-Tuesday-Blitz-March-05-2024"]
[Site "Chess.com"]
[Date "2024.03.05"]
[Round "4"]
[White "Seochesspie"]
[Black "WilsonPalencia21"]
[Result "1-0"]
[WhiteElo "2823"]
[BlackElo "2575"]
[TimeControl "180+1"]
[EndTime "8:42:30 PST"]
[Termination "Seochesspie won on time"]

1. d4 {[%clk 0:03:00.9]} 1... Nf6 {[%clk 0:02:56.3]} 2. c4 {[%clk 0:03:01.8]}
2... c5 {[%clk 0:02:53.6]} 3. d5 {[%clk 0:03:01.6]} 3... e6 {[%clk 0:02:53.9]}
4. Nc3 {[%clk 0:03:01.2]} 4... exd5 {[%clk 0:02:54.8]} 5. cxd5 {[%clk
0:03:01.8]} 5... d6 {[%clk 0:02:55.5]} 6. g3 {[%clk 0:02:57.4]} 6... g6 {[%clk
0:02:55.7]} 7. Bg2 {[%clk 0:02:57.9]} 7... Bg7 {[%clk 0:02:56.6]} 8. Nf3 {[%clk
0:02:58.5]} 8... O-O {[%clk 0:02:57.3]} 9. O-O {[%clk 0:02:59.2]} 9... Re8
{[%clk 0:02:57.9]} 10. Re1 {[%clk 0:02:56.7]} 10... Ne4 {[%clk 0:02:58.4]} 11.
Nxe4 {[%clk 0:02:56.6]} 11... Rxe4 {[%clk 0:02:59.3]} 12. Nd2 {[%clk 0:02:55.6]}
12... Re8 {[%clk 0:02:59.8]} 13. Ne4 {[%clk 0:02:43]} 13... Bf5 {[%clk
0:02:57.6]} 14. Nc3 {[%clk 0:02:43.1]} 14... a6 {[%clk 0:02:57.1]} 15. a4 {[%clk
0:02:42.5]} 15... Bc8 {[%clk 0:02:47.4]} 16. Bf4 {[%clk 0:02:41.3]} 16... Nd7
{[%clk 0:02:45.3]} 17. Qc2 {[%clk 0:02:33.7]} 17... Ne5 {[%clk 0:02:44.4]} 18.
Rac1 {[%clk 0:02:27.3]} 18... Bd7 {[%clk 0:02:38]} 19. Qd1 {[%clk 0:02:10.5]}
19... b5 {[%clk 0:02:33.2]} 20. axb5 {[%clk 0:02:10]} 20... axb5 {[%clk
0:02:33.2]} 21. Ne4 {[%clk 0:02:10.4]} 21... Bf5 {[%clk 0:02:25.3]} 22. Nd2
{[%clk 0:02:09.1]} 22... c4 {[%clk 0:02:10.5]} 23. h3 {[%clk 0:02:02.9]} 23...
h5 {[%clk 0:02:07.9]} 24. Kh2 {[%clk 0:02:01.7]} 24... Ra2 {[%clk 0:02:03.1]}
25. b3 {[%clk 0:02:00]} 25... cxb3 {[%clk 0:01:37.4]} 26. Nxb3 {[%clk
0:01:59.8]} 26... Nc4 {[%clk 0:01:34.1]} 27. Nd4 {[%clk 0:01:52.4]} 27... Bd7
{[%clk 0:01:20.1]} 28. Nc6 {[%clk 0:01:43.5]} 28... Qa8 {[%clk 0:01:13.9]} 29.
Bf3 {[%clk 0:01:34.5]} 29... Bf5 {[%clk 0:01:01.1]} 30. Kg2 {[%clk 0:01:07.3]}
30... Qa3 {[%clk 0:00:52.1]} 31. e4 {[%clk 0:00:54.6]} 31... Nb2 {[%clk
0:00:32.8]} 32. exf5 {[%clk 0:00:40.9]} 32... Nxd1 {[%clk 0:00:26.6]} 33. Rxe8+
{[%clk 0:00:38.1]} 33... Kh7 {[%clk 0:00:26.4]} 34. fxg6+ {[%clk 0:00:32.9]}
34... fxg6 {[%clk 0:00:26]} 35. Rxd1 {[%clk 0:00:33.8]} 35... Qc5 {[%clk
0:00:16.6]} 36. Be3 {[%clk 0:00:28.7]} 36... Qc2 {[%clk 0:00:13.2]} 37. Rd2
{[%clk 0:00:28]} 37... Qb1 {[%clk 0:00:13.3]} 38. Rxa2 {[%clk 0:00:27.6]} 38...
Qxa2 {[%clk 0:00:13.7]} 39. Be4 {[%clk 0:00:22.3]} 39... Qc4 {[%clk 0:00:12.7]}
40. Re6 {[%clk 0:00:20.4]} 40... Kg8 {[%clk 0:00:07.1]} 41. Ne7+ {[%clk
0:00:19.2]} 41... Kf7 {[%clk 0:00:04.9]} 42. Bxg6+ {[%clk 0:00:15.6]} 42... Kf8
{[%clk 0:00:05]} 43. Kh2 {[%clk 0:00:09.6]} 43... h4 {[%clk 0:00:04.3]} 44. Nf5
{[%clk 0:00:05]} 44... hxg3+ {[%clk 0:00:04.3]} 45. Kxg3 {[%clk 0:00:05.4]} 1-0

[Event "Early-Titled-Tuesday-Blitz-March-05-2024"]
[Site "Chess.com"]
[Date "2024.03.05"]
[Round "4"]
[White "kinga2008"]
[Black "mary-sanna"]
[Result "0-1"]
[WhiteElo "2400"]
[BlackElo "2215"]
[TimeControl "180+1"]
[EndTime "8:42:30 PST"]
[Termination "mary-sanna won by resignation"]

1. e4 {[%clk 0:03:00.9]} 1... c5 {[%clk 0:02:59.9]} 2. Nf3 {[%clk 0:02:55.2]}
2... Nc6 {[%clk 0:02:59.8]} 3. g3 {[%clk 0:02:48.6]} 3... g6 {[%clk 0:02:54.8]}
4. Bg2 {[%clk 0:02:39.1]} 4... Bg7 {[%clk 0:02:54.7]} 5. O-O {[%clk 0:02:37.7]}
5... Nf6 {[%clk 0:02:51.3]} 6. Re1 {[%clk 0:02:30.6]} 6... O-O {[%clk
0:02:50.3]} 7. Nc3 {[%clk 0:02:30.2]} 7... e5 {[%clk 0:02:41]} 8. Nd5 {[%clk
0:02:24]} 8... Re8 {[%clk 0:02:34]} 9. c4 {[%clk 0:02:16.1]} 9... Nxd5 {[%clk
0:02:28.1]} 10. exd5 {[%clk 0:02:08.4]} 10... Nd4 {[%clk 0:02:25]} 11. d3 {[%clk
0:02:05.7]} 11... d6 {[%clk 0:02:23.4]} 12. Nxd4 {[%clk 0:02:05.6]} 12... exd4
{[%clk 0:02:23.4]} 13. Bf4 {[%clk 0:02:04.9]} 13... Bf5 {[%clk 0:02:21.6]} 14.
Qb3 {[%clk 0:02:03.8]} 14... Qd7 {[%clk 0:02:15.8]} 15. f3 {[%clk 0:02:01.2]}
15... h5 {[%clk 0:02:13.9]} 16. Bf1 {[%clk 0:01:48.3]} 16... Kh7 {[%clk
0:02:12.9]} 17. a4 {[%clk 0:01:43.1]} 17... Bh6 {[%clk 0:01:56.8]} 18. Bxh6
{[%clk 0:01:37.4]} 18... Kxh6 {[%clk 0:01:57.7]} 19. Qc2 {[%clk 0:01:28.9]}
19... Rxe1 {[%clk 0:01:52.6]} 20. Rxe1 {[%clk 0:01:28.5]} 20... Re8 {[%clk
0:01:53.1]} 21. Qd2+ {[%clk 0:01:28.9]} 21... Kg7 {[%clk 0:01:52.1]} 22. b3
{[%clk 0:01:23.1]} 22... Re7 {[%clk 0:01:34.5]} 23. Kf2 {[%clk 0:01:22.2]} 23...
Qe8 {[%clk 0:01:32.3]} 24. Rxe7 {[%clk 0:01:09.8]} 24... Qxe7 {[%clk 0:01:32.1]}
25. Qf4 {[%clk 0:01:10.5]} 25... b6 {[%clk 0:01:19.7]} 26. Be2 {[%clk
0:01:02.8]} 26... f6 {[%clk 0:00:55.9]} 27. g4 {[%clk 0:00:59.3]} 27... hxg4
{[%clk 0:00:56.8]} 28. fxg4 {[%clk 0:01:00.2]} 28... Bd7 {[%clk 0:00:54.5]} 29.
h4 {[%clk 0:00:57.2]} 29... g5 {[%clk 0:00:51.2]} 30. hxg5 {[%clk 0:00:42.2]}
30... fxg5 {[%clk 0:00:52.1]} 31. Qd2 {[%clk 0:00:37.9]} 31... Qf6+ {[%clk
0:00:48.3]} 32. Kg2 {[%clk 0:00:34.9]} 32... Qe5 {[%clk 0:00:45.2]} 33. Bf3
{[%clk 0:00:32.8]} 33... Be8 {[%clk 0:00:32.3]} 34. Be4 {[%clk 0:00:28.1]} 34...
Bd7 {[%clk 0:00:27.9]} 35. Qe2 {[%clk 0:00:27.1]} 35... Qf4 {[%clk 0:00:25.7]}
36. Bf3 {[%clk 0:00:27.5]} 36... Kf7 {[%clk 0:00:15.7]} 37. Kh3 {[%clk
0:00:24.2]} 37... Kf6 {[%clk 0:00:13.5]} 38. Bg2 {[%clk 0:00:21.4]} 38... Qe3+
{[%clk 0:00:12.5]} 39. Bf3 {[%clk 0:00:08.3]} 39... Ke5 {[%clk 0:00:05.7]} 40.
Kg3 {[%clk 0:00:07.9]} 40... Bc8 {[%clk 0:00:03.5]} 41. Qh2 {[%clk 0:00:04.5]}
41... Qf4+ {[%clk 0:00:03.3]} 42. Kg2 {[%clk 0:00:04.6]} 42... Qxh2+ {[%clk
0:00:03]} 43. Kxh2 {[%clk 0:00:05.5]} 43... Kf4 {[%clk 0:00:03.7]} 44. Kh3
{[%clk 0:00:03.2]} 44... Kxf3 {[%clk 0:00:03.6]} 0-1

[Event "Early-Titled-Tuesday-Blitz-March-05-2024"]
[Site "Chess.com"]
[Date "2024.03.05"]
[Round "4"]
[White "Sina_Movahed"]
[Black "Miguelito"]
[Result "1-0"]
[WhiteElo "3041"]
[BlackElo "2835"]
[TimeControl "180+1"]
[EndTime "8:42:32 PST"]
[Termination "Sina_Movahed won by resignation"]

1. Nf3 {[%clk 0:03:00.9]} 1... d5 {[%clk 0:03:00]} 2. c4 {[%clk 0:03:00.8]} 2...
e6 {[%clk 0:02:59.7]} 3. g3 {[%clk 0:03:00.7]} 3... dxc4 {[%clk 0:03:00]} 4. Bg2
{[%clk 0:03:01.6]} 4... a6 {[%clk 0:02:59.2]} 5. Na3 {[%clk 0:02:56.4]} 5... b5
{[%clk 0:02:35.2]} 6. d3 {[%clk 0:02:46.4]} 6... cxd3 {[%clk 0:02:25.2]} 7. Ne5
{[%clk 0:02:43.6]} 7... Ra7 {[%clk 0:02:16.2]} 8. O-O {[%clk 0:02:39.6]} 8...
Nf6 {[%clk 0:01:59.4]} 9. exd3 {[%clk 0:02:15.1]} 9... Bb7 {[%clk 0:01:48.6]}
10. Bxb7 {[%clk 0:02:01.3]} 10... Rxb7 {[%clk 0:01:47.7]} 11. Nc2 {[%clk
0:02:00.7]} 11... Be7 {[%clk 0:01:43.1]} 12. d4 {[%clk 0:01:51.7]} 12... O-O
{[%clk 0:01:40.6]} 13. Ne3 {[%clk 0:01:47.6]} 13... c5 {[%clk 0:01:37.5]} 14.
Qf3 {[%clk 0:01:38.9]} 14... Rc7 {[%clk 0:01:25.1]} 15. dxc5 {[%clk 0:01:39.1]}
15... Rxc5 {[%clk 0:01:20.7]} 16. Rd1 {[%clk 0:01:39.5]} 16... Qc8 {[%clk
0:01:12.4]} 17. Nd3 {[%clk 0:01:37.5]} 17... Rc7 {[%clk 0:01:05.8]} 18. Bd2
{[%clk 0:01:37.2]} 18... Nc6 {[%clk 0:01:05.2]} 19. Bc3 {[%clk 0:01:36]} 19...
b4 {[%clk 0:01:01.2]} 20. Bxf6 {[%clk 0:01:35.7]} 20... Bxf6 {[%clk 0:01:00.2]}
21. Qe4 {[%clk 0:01:21.2]} 21... g6 {[%clk 0:00:56]} 22. Rac1 {[%clk 0:01:20.3]}
22... Rd8 {[%clk 0:00:55.1]} 23. Qf4 {[%clk 0:00:58.1]} 23... Bg7 {[%clk
0:00:43.7]} 24. Nxb4 {[%clk 0:00:48.7]} 24... Rxd1+ {[%clk 0:00:43.1]} 25. Rxd1
{[%clk 0:00:47.7]} 25... Nxb4 {[%clk 0:00:26.7]} 26. Qxb4 {[%clk 0:00:47]} 26...
Rb7 {[%clk 0:00:26.4]} 27. Qa5 {[%clk 0:00:46.7]} 27... Rb8 {[%clk 0:00:20.9]}
28. b3 {[%clk 0:00:44]} 28... Bf6 {[%clk 0:00:19.9]} 29. Rd6 {[%clk 0:00:40.9]}
29... Ra8 {[%clk 0:00:13.9]} 30. Nc4 {[%clk 0:00:37.5]} 30... h5 {[%clk
0:00:13.7]} 31. h4 {[%clk 0:00:36.7]} 31... Qb7 {[%clk 0:00:12.4]} 32. Rb6
{[%clk 0:00:33]} 32... Qf3 {[%clk 0:00:12.2]} 33. Rd6 {[%clk 0:00:28.4]} 33...
Kg7 {[%clk 0:00:09.7]} 34. Qc7 {[%clk 0:00:24.7]} 34... Re8 {[%clk 0:00:08.1]}
35. Rd7 {[%clk 0:00:23.4]} 35... Rf8 {[%clk 0:00:07.7]} 36. Nd6 {[%clk
0:00:15.6]} 36... Bxh4 {[%clk 0:00:06.4]} 37. Nxf7 {[%clk 0:00:05.3]} 37... Rxf7
{[%clk 0:00:03.6]} 38. Rxf7+ {[%clk 0:00:05.5]} 38... Qxf7 {[%clk 0:00:04.3]}
39. Qxf7+ {[%clk 0:00:06.3]} 39... Kxf7 {[%clk 0:00:04.8]} 40. gxh4 {[%clk
0:00:06.9]} 40... g5 {[%clk 0:00:05.1]} 41. hxg5 {[%clk 0:00:06.9]} 41... Kg6
{[%clk 0:00:05.8]} 42. f4 {[%clk 0:00:07.1]} 42... e5 {[%clk 0:00:05.7]} 43. a4
{[%clk 0:00:04.9]} 43... exf4 {[%clk 0:00:03.5]} 44. b4 {[%clk 0:00:05.8]} 44...
Kxg5 {[%clk 0:00:03.8]} 45. a5 {[%clk 0:00:06.5]} 45... Kg4 {[%clk 0:00:03.1]}
46. b5 {[%clk 0:00:07.4]} 46... f3 {[%clk 0:00:03.7]} 47. bxa6 {[%clk
0:00:07.6]} 47... f2+ {[%clk 0:00:04.3]} 48. Kxf2 {[%clk 0:00:07.6]} 1-0